bitfinex/quotes_SOLUSD_20250529
["timestamp","ask_amount","ask_price","bid_price","bid_amount"]
[1748528790193,0.28432314,169.5,169.46,27.90156608]
[1748528790503,18.64964886,169.53,169.48,27.90156608]
[1748528790804,0.28432314,169.52,169.48,27.90156608]
[1748528791218,0.14216157,169.51,169.47,27.90156608]
[1748528791809,0.42648471,169.5,169.46,27.90156608]
[1748528792107,0.42648471,169.5,169.45,26.0]
[1748528792418,0.42648471,169.5,169.46,27.90156608]
[1748528793077,0.28432314,169.5,169.45,26.0]
[1748528793279,0.28432314,169.5,169.46,27.90156608]
[1748528793588,0.28432314,169.5,169.47,27.90156608]
[1748528794013,0.28432314,169.51,169.47,27.90156608]
[1748528794318,0.14216157,169.5,169.46,27.90156608]
[1748528795295,0.14216157,169.5,169.47,27.90156608]
[1748528795697,0.14216157,169.5,169.49,27.90156608]
[1748528796982,46.55121494,169.54,169.49,27.90156608]
[1748528796983,0.14216157,169.53,169.49,27.90156608]
[1748528797222,0.14216157,169.53,169.52,27.90156608]
[1748528797624,0.14216157,169.56,169.52,27.90156608]
[1748528797810,0.42648471,169.56,169.47,1.6614]
[1748528798022,0.14216157,169.54,169.5,27.90156608]
[1748528798402,0.14216157,169.54,169.51,27.90156608]
[1748528798598,28.18588922,169.56,169.53,27.90156608]
[1748528798599,0.14216157,169.55,169.53,27.90156608]
[1748528798803,0.14216157,169.55,169.54,27.90156608]
[1748528799111,0.14216157,169.57,169.54,27.90156608]
[1748528799696,0.42648471,169.57,169.53,27.90156608]
[1748528799896,0.42648471,169.57,169.5,12.34]
[1748528800101,0.42648471,169.57,169.54,27.90156608]
[1748528800102,0.14216157,169.57,169.54,27.90156608]
[1748528800333,0.14216157,169.57,169.53,27.90156608]
[1748528800528,0.42648471,169.57,169.53,27.90156608]
[1748528801916,28.32805079,169.57,169.52,27.90156608]
[1748528802137,0.42648471,169.57,169.53,27.90156608]
[1748528802347,28.32805079,169.57,169.5,12.34]
[1748528802498,28.32805079,169.54,169.5,12.34]
[1748528802704,28.32805079,169.54,169.49,27.90156608]
[1748528802925,28.32805079,169.54,169.47,1.6614]
[1748528802926,0.42648471,169.54,169.5,27.90156608]
[1748528803129,0.28432314,169.54,169.5,27.90156608]
[1748528803427,0.14216157,169.53,169.47,1.6614]
[1748528803627,28.04372765,169.53,169.48,27.90156608]
[1748528803830,0.14216157,169.53,169.49,27.90156608]
[1748528804013,41.14216157,169.53,169.49,27.90156608]
[1748528804639,41.14216157,169.53,169.47,1.6614]
[1748528804810,41.14216157,169.53,169.49,27.90156608]
[1748528805217,41.14216157,169.53,169.5,27.90156608]
[1748528806118,41.14216157,169.53,169.47,1.6614]
[1748528806119,41.14216157,169.53,169.49,27.90156608]
[1748528807120,41.14216157,169.53,169.47,1.6614]
[1748528807319,28.18588922,169.52,169.47,27.90156608]
[1748528807527,0.14216157,169.51,169.47,27.90156608]
[1748528808343,0.14216157,169.51,169.46,27.90156608]
[1748528808344,0.28432314,169.5,169.46,27.90156608]
[1748528808539,0.28432314,169.5,169.45,40.22156608]
[1748528808841,0.14216157,169.49,169.45,40.22156608]
[1748528809227,0.42648471,169.5,169.47,27.90156608]
[1748528809814,0.28432314,169.5,169.47,27.90156608]
[1748528810838,41.0,169.53,169.47,27.90156608]
[1748528811038,0.42648471,169.52,169.48,27.90156608]
[1748528811629,28.32805079,169.52,169.47,27.90156608]
[1748528813134,0.42648471,169.52,169.48,27.90156608]
[1748528814031,26.98110274,169.61,169.51,17.39583249]
[1748528814246,17.53799406,169.56,169.51,17.39583249]
[1748528814449,0.28432314,169.55,169.51,17.39583249]
[1748528814837,17.53799406,169.56,169.51,17.39583249]
[1748528815250,0.14216157,169.56,169.52,17.39583249]
[1748528815665,0.42648471,169.56,169.52,17.39583249]
[1748528815959,0.28432314,169.56,169.52,27.82084292]
[1748528816275,0.42648471,169.56,169.52,27.82084292]
[1748528816957,0.14216157,169.56,169.53,27.82084292]
[1748528817261,0.14216157,169.56,169.52,27.82084292]
[1748528818265,28.24732763,169.56,169.51,27.82084292]
[1748528818556,0.42648471,169.54,169.5,27.82084292]
[1748528819334,0.14216157,169.54,169.53,27.82084292]
[1748528819566,0.14216157,169.58,169.53,27.82084292]
[1748528819736,28.24732763,169.58,169.53,27.82084292]
[1748528819937,28.10516606,169.58,169.53,27.82084292]
[1748528820452,0.28432314,169.58,169.54,27.82084292]
[1748528820658,0.42648471,169.58,169.54,27.82084292]
[1748528820837,0.28432314,169.58,169.55,27.82084292]
[1748528821037,0.14216157,169.6,169.57,27.82084292]
[1748528821268,0.14216157,169.6,169.59,27.82084292]
[1748528821436,0.42648471,169.63,169.59,27.82084292]
[1748528821632,0.14216157,169.63,169.59,27.82084292]
[1748528821864,0.14216157,169.63,169.6,27.82084292]
[1748528822059,0.14216157,169.64,169.6,27.82084292]
[1748528822255,18.79181043,169.62,169.52,12.32]
[1748528822580,0.14216157,169.6,169.56,27.82084292]
[1748528822739,18.933972,169.59,169.52,12.32]
[1748528823059,18.933972,169.59,169.53,27.82084292]
[1748528823060,0.42648471,169.57,169.53,27.82084292]
[1748528823264,0.14216157,169.57,169.54,27.82084292]
[1748528823469,0.14216157,169.58,169.54,27.82084292]
[1748528823818,0.14216157,169.56,169.52,27.82084292]
[1748528824068,0.14216157,169.52,169.48,27.82084292]
[1748528824361,0.14216157,169.52,169.5,27.82084292]
[1748528824754,0.42648471,169.54,169.47,12.32]
[1748528825077,0.14216157,169.54,169.53,27.82084292]
[1748528825252,0.14216157,169.58,169.53,27.82084292]
[1748528825450,0.14216157,169.58,169.54,27.82084292]
[1748528825747,27.96300449,169.58,169.53,27.82084292]
[1748528825947,0.28432314,169.57,169.53,27.82084292]
[1748528826153,0.28432314,169.57,169.54,27.82084292]
[1748528826377,0.14216157,169.57,169.53,27.82084292]
[1748528827177,0.14216157,169.57,169.49,26.0]
[1748528827359,0.14216157,169.57,169.53,27.82084292]
[1748528828091,0.14216157,169.59,169.55,27.82084292]
[1748528828592,0.28432314,169.59,169.55,27.82084292]
[1748528828961,0.42648471,169.59,169.54,27.82084292]
[1748528829968,0.14216157,169.55,169.47,12.32]
[1748528830166,0.14216157,169.55,169.51,27.82084292]
[1748528830372,0.14216157,169.55,169.52,27.82084292]
[1748528831071,0.14216157,169.56,169.52,27.82084292]
[1748528831785,0.42648471,169.57,169.52,27.82084292]
[1748528832096,28.24732763,169.57,169.52,27.82084292]
[1748528832490,0.42648471,169.58,169.52,27.82084292]
[1748528832694,28.24732763,169.58,169.53,27.82084292]
[1748528832907,0.42648471,169.58,169.54,27.82084292]
[1748528833064,0.28432314,169.58,169.54,27.82084292]
[1748528833560,0.14216157,169.58,169.54,27.82084292]
[1748528833759,27.96300449,169.59,169.54,27.82084292]
[1748528833958,18.79181043,169.63,169.57,27.82084292]
[1748528834159,0.14216157,169.62,169.58,27.82084292]
[1748528834977,0.14216157,169.63,169.58,27.82084292]
[1748528835172,0.14216157,169.63,169.6,27.82084292]
[1748528835368,0.14216157,169.63,169.59,27.82084292]
[1748528835590,0.14216157,169.63,169.54,13.8752]
[1748528835591,27.96300449,169.63,169.54,13.8752]
[1748528835768,27.96300449,169.63,169.58,27.82084292]
[1748528836086,0.14216157,169.62,169.59,17.37483922]
[1748528836406,18.64964886,169.68,169.61,17.37483922]
[1748528836698,17.80132393,169.66,169.61,17.37483922]
[1748528836997,17.51700079,169.66,169.6,17.37483922]
[1748528837200,23.41116706,169.66,169.6,17.37483922]
[1748528837379,0.14216157,169.64,169.6,17.37483922]
[1748528837580,0.42648471,169.64,169.59,17.37483922]
[1748528837891,0.42648471,169.64,169.6,17.37483922]
[1748528838098,0.14216157,169.65,169.62,27.79411767]
[1748528838386,0.14216157,169.65,169.64,27.79411767]
[1748528838572,0.14216157,169.68,169.64,27.79411767]
[1748528838767,0.14216157,169.68,169.59,26.0]
[1748528838964,27.79411767,169.7,169.65,27.79411767]
[1748528839187,40.94,169.71,169.67,27.79411767]
[1748528839389,40.94,169.71,169.68,27.79411767]
[1748528839610,0.14216157,169.72,169.68,27.79411767]
[1748528840103,0.42648471,169.72,169.68,27.79411767]
[1748528840397,0.14216157,169.72,169.68,27.79411767]
[1748528840601,0.28432314,169.72,169.68,27.79411767]
[1748528840764,0.42648471,169.72,169.68,27.79411767]
[1748528841196,0.14216157,169.73,169.64,26.0]
[1748528841378,0.42648471,169.73,169.69,27.79411767]
[1748528841584,0.42648471,169.73,169.72,27.79411767]
[1748528841585,0.14216157,169.73,169.72,27.79411767]
[1748528841789,0.14216157,169.76,169.71,27.79411767]
[1748528841961,27.93627924,169.76,169.71,27.79411767]
[1748528842167,0.28432314,169.75,169.71,27.79411767]
[1748528842366,0.14216157,169.75,169.71,27.79411767]
[1748528842866,0.14216157,169.75,169.63,40.94]
[1748528842867,0.14216157,169.73,169.63,40.94]
[1748528843075,28.07844081,169.74,169.63,40.94]
[1748528843076,0.14216157,169.71,169.67,27.79411767]
[1748528843275,0.14216157,169.71,169.68,27.79411767]
[1748528843473,0.14216157,169.71,169.69,27.79411767]
[1748528843673,0.28432314,169.73,169.7,27.79411767]
[1748528843967,0.14216157,169.73,169.71,27.79411767]
[1748528844373,0.42648471,169.74,169.71,27.79411767]
[1748528844683,0.14216157,169.74,169.71,27.79411767]
[1748528844879,0.42648471,169.75,169.71,27.79411767]
[1748528845085,0.14216157,169.73,169.69,27.79411767]
[1748528845282,27.93627924,169.73,169.69,27.79411767]
[1748528845480,27.93627924,169.73,169.64,26.0]
[1748528845481,0.14216157,169.7,169.64,26.0]
[1748528845681,0.14216157,169.7,169.66,27.79411767]
[1748528846088,0.14216157,169.71,169.67,27.79411767]
[1748528847272,0.14216157,169.71,169.64,26.0]
[1748528847273,0.42648471,169.72,169.68,27.79411767]
[1748528847696,0.14216157,169.72,169.68,27.79411767]
[1748528847898,18.64964886,169.75,169.7,27.79411767]
[1748528847899,0.14216157,169.75,169.7,27.79411767]
[1748528848197,0.14216157,169.74,169.7,27.79411767]
[1748528848672,0.28432314,169.74,169.7,27.79411767]
[1748528849173,0.14216157,169.73,169.69,27.79411767]
[1748528849393,0.14216157,169.71,169.67,27.79411767]
[1748528849694,0.14216157,169.71,169.64,26.0]
[1748528849695,0.14216157,169.71,169.68,27.79411767]
[1748528850073,0.42648471,169.73,169.68,27.79411767]
[1748528850277,28.22060238,169.73,169.68,27.79411767]
[1748528850479,0.14216157,169.71,169.67,27.79411767]
[1748528850673,0.42648471,169.71,169.67,27.79411767]
[1748528850903,0.14216157,169.69,169.65,27.79411767]
[1748528851300,0.42648471,169.69,169.65,27.79411767]
[1748528851795,0.28432314,169.69,169.65,27.79411767]
[1748528853304,0.42648471,169.7,169.64,26.0]
[1748528853508,0.14216157,169.69,169.65,27.79411767]
[1748528854007,0.42648471,169.7,169.66,27.79411767]
[1748528856291,28.22060238,169.7,169.65,27.79411767]
[1748528857205,0.42648471,169.7,169.64,26.0]
[1748528857581,28.22060238,169.7,169.65,27.79411767]
[1748528857996,0.42648471,169.7,169.65,27.79411767]
[1748528858178,28.22060238,169.7,169.64,26.0]
[1748528858382,0.14216157,169.73,169.64,26.0]
[1748528858581,0.14216157,169.73,169.63,18.79181043]
[1748528858778,0.14216157,169.73,169.66,26.0]
[1748528858996,0.14216157,169.74,169.7,27.79411767]
[1748528859205,0.14216157,169.73,169.64,26.0]
[1748528859399,0.14216157,169.71,169.67,27.79411767]
[1748528859601,28.22060238,169.71,169.62,1.5689]
[1748528859909,0.14216157,169.69,169.65,27.79411767]
[1748528860095,0.14216157,169.69,169.65,17.36099817]
[1748528860610,0.14216157,169.69,169.66,17.36099817]
[1748528861106,0.28432314,169.71,169.66,17.36099817]
[1748528861320,17.78748288,169.71,169.66,17.36099817]
[1748528861610,17.78748288,169.71,169.67,17.36099817]
[1748528861803,0.14216157,169.72,169.68,17.36099817]
[1748528862006,0.14216157,169.72,169.71,17.36099817]
[1748528862403,0.14216157,169.76,169.71,17.36099817]
[1748528862591,0.14216157,169.76,169.73,17.36099817]
[1748528862988,0.14216157,169.76,169.72,17.36099817]
[1748528863220,0.14216157,169.77,169.73,17.36099817]
[1748528863426,0.42648471,169.77,169.73,17.36099817]
[1748528863601,0.42648471,169.77,169.7,1.5317]
[1748528863602,0.14216157,169.77,169.7,1.5317]
[1748528863918,0.14216157,169.78,169.73,17.36099817]
[1748528864215,0.14216157,169.77,169.7,1.5317]
[1748528864393,0.28432314,169.77,169.7,1.5317]
[1748528864724,0.28432314,169.77,169.73,17.36099817]
[1748528865218,0.28432314,169.77,169.7,1.5317]
[1748528865219,0.14216157,169.76,169.72,17.36099817]
[1748528865388,0.14216157,169.76,169.71,17.36099817]
[1748528865588,17.50315974,169.76,169.7,1.5317]
[1748528865792,0.28432314,169.77,169.71,17.36099817]
[1748528865999,0.42648471,169.77,169.71,17.36099817]
[1748528866214,0.14216157,169.75,169.71,17.36099817]
[1748528866592,0.14216157,169.75,169.72,17.36099817]
[1748528867098,0.42648471,169.78,169.72,17.36099817]
[1748528867321,0.14216157,169.75,169.72,17.36099817]
[1748528867688,0.42648471,169.78,169.72,17.36099817]
[1748528868009,0.42648471,169.76,169.7,1.5317]
[1748528868316,0.42648471,169.76,169.72,17.36099817]
[1748528868533,17.78748288,169.76,169.7,1.5317]
[1748528868703,0.14216157,169.75,169.7,1.5317]
[1748528869087,0.14216157,169.75,169.71,17.36099817]
[1748528870203,0.14216157,169.75,169.69,12.28]
[1748528870527,17.50315974,169.74,169.69,12.28]
[1748528870716,0.14216157,169.74,169.7,17.36099817]
[1748528870891,0.28432314,169.75,169.7,17.36099817]
[1748528871402,0.28432314,169.75,169.69,12.28]
[1748528871403,18.64964886,169.8,169.69,12.28]
[1748528871621,17.64532131,169.79,169.75,17.36099817]
[1748528871815,17.64532131,169.79,169.74,17.36099817]
[1748528872228,17.64532131,169.79,169.69,12.28]
[1748528872229,0.14216157,169.78,169.69,12.28]
[1748528872738,0.14216157,169.77,169.73,17.36099817]
[1748528872913,17.64532131,169.77,169.72,17.36099817]
[1748528873233,17.64532131,169.77,169.69,12.28]
[1748528873234,0.14216157,169.76,169.71,17.36099817]
[1748528873833,0.14216157,169.76,169.72,17.36099817]
[1748528874193,0.14216157,169.79,169.74,17.36099817]
[1748528874524,17.78748288,169.79,169.74,17.36099817]
[1748528874892,0.14216157,169.77,169.73,17.36099817]
[1748528875302,18.64964886,169.8,169.76,17.36099817]
[1748528875303,0.14216157,169.8,169.76,17.36099817]
[1748528875543,17.50315974,169.8,169.71,26.0]
[1748528875698,17.50315974,169.8,169.72,26.0]
[1748528876039,0.42648471,169.81,169.75,17.36099817]
[1748528876525,0.14216157,169.79,169.75,17.36099817]
[1748528877327,17.78748288,169.79,169.72,26.0]
[1748528877544,0.14216157,169.77,169.73,17.36099817]
[1748528879192,0.42648471,169.79,169.73,17.36099817]
[1748528879407,0.14216157,169.77,169.73,17.36099817]
[1748528879612,17.50315974,169.77,169.72,43.36099817]
[1748528879819,0.14216157,169.75,169.71,17.36099817]
[1748528880003,17.50315974,169.75,169.7,17.36099817]
[1748528880204,17.50315974,169.75,169.69,12.28]
[1748528880205,0.14216157,169.75,169.71,17.36099817]
[1748528880409,0.28432314,169.73,169.69,17.36099817]
[1748528880904,0.28432314,169.73,169.67,29.62099817]
[1748528880905,0.14216157,169.71,169.67,29.62099817]
[1748528881106,17.50315974,169.71,169.67,12.26]
[1748528881527,0.42648471,169.73,169.67,55.62099817]
[1748528881707,0.42648471,169.71,169.67,55.62099817]
[1748528882023,0.42648471,169.71,169.67,29.62099817]
[1748528882721,0.42648471,169.71,169.64,6.5953]
[1748528882722,0.14216157,169.68,169.64,17.36099817]
[1748528882909,0.14216157,169.68,169.62,97.08]
[1748528882910,17.50315974,169.68,169.63,17.36099817]
[1748528883526,0.14216157,169.68,169.62,114.44099817]
[1748528883867,0.28432314,169.69,169.62,97.08]
[1748528883868,17.78748288,169.69,169.62,97.08]
[1748528884133,17.78748288,169.69,169.64,17.36099817]
[1748528884506,0.14216157,169.7,169.66,17.36099817]
[1748528884720,0.14216157,169.7,169.67,17.36099817]
[1748528885442,0.14216157,169.69,169.65,17.36099817]
[1748528885639,0.14216157,169.67,169.63,17.36099817]
[1748528885810,0.14216157,169.67,169.64,17.36099817]
[1748528886005,0.14216157,169.67,169.65,17.36099817]
[1748528886201,38.26,169.75,169.66,17.36099817]
[1748528886507,38.26,169.75,169.64,26.0]
[1748528886508,0.14216157,169.74,169.7,17.36099817]
[1748528886704,0.42648471,169.74,169.69,17.36099817]
[1748528886903,0.14216157,169.73,169.69,17.36099817]
[1748528887304,0.14216157,169.73,169.64,26.0]
[1748528887538,0.14216157,169.71,169.65,26.0]
[1748528887751,0.42648471,169.71,169.66,17.36099817]
[1748528887962,17.78748288,169.71,169.66,17.36099817]
[1748528888476,17.36099817,169.68,169.63,17.36099817]
[1748528888643,0.42648471,169.69,169.64,17.36099817]
[1748528888947,0.42648471,169.69,169.62,84.82]
[1748528888948,0.42648471,169.69,169.65,17.36099817]
[1748528889826,17.36099817,169.66,169.61,31.24389817]
[1748528890026,0.14216157,169.67,169.61,31.24389817]
[1748528890255,17.50315974,169.67,169.62,17.36099817]
[1748528890458,0.28432314,169.68,169.63,17.36099817]
[1748528890631,0.14216157,169.67,169.63,17.36099817]
[1748528891046,0.14216157,169.67,169.61,13.8829]
[1748528891260,0.14216157,169.67,169.63,17.36099817]
[1748528891631,0.42648471,169.68,169.63,17.36099817]
[1748528891830,0.14216157,169.68,169.66,17.36099817]
[1748528892346,0.42648471,169.7,169.66,17.36099817]
[1748528893239,0.14216157,169.75,169.69,17.36099817]
[1748528893441,0.14216157,169.75,169.7,17.36099817]
[1748528893657,0.42648471,169.75,169.7,17.36099817]
[1748528893860,0.14216157,169.75,169.7,17.36099817]
[1748528894166,0.42648471,169.72,169.68,17.36099817]
[1748528894329,17.78748288,169.72,169.67,17.36099817]
[1748528894656,17.78748288,169.72,169.61,54.7429]
[1748528894657,0.42648471,169.7,169.66,17.36099817]
[1748528896164,0.14216157,169.69,169.65,17.36099817]
[1748528896458,0.42648471,169.7,169.67,17.36099817]
[1748528897465,0.28432314,169.7,169.67,17.36099817]
[1748528898163,0.14216157,169.71,169.67,17.36099817]
[1748528898739,17.64532131,169.71,169.64,26.0]
[1748528899059,0.14216157,169.7,169.66,17.36099817]
[1748528900466,0.42648471,169.7,169.66,17.36099817]
[1748528900636,0.28432314,169.7,169.66,17.36099817]
[1748528900831,0.42648471,169.7,169.66,17.36099817]
[1748528901033,17.78748288,169.7,169.64,26.0]
[1748528901259,17.78748288,169.7,169.65,17.36099817]
[1748528901567,17.78748288,169.7,169.66,17.36099817]
[1748528901860,0.42648471,169.7,169.61,13.8829]
[1748528902064,17.78748288,169.68,169.61,1.6229]
[1748528902252,0.14216157,169.67,169.63,17.36099817]
[1748528902456,0.14216157,169.67,169.61,13.8829]
[1748528902756,0.14216157,169.67,169.64,17.36099817]
[1748528902958,0.42648471,169.68,169.61,13.8829]
[1748528903158,0.14216157,169.66,169.62,17.36099817]
[1748528904272,0.14216157,169.67,169.64,17.36099817]
[1748528904571,0.42648471,169.68,169.65,17.36099817]
[1748528904940,0.42648471,169.68,169.61,13.8829]
[1748528905144,0.42648471,169.68,169.64,17.36099817]
[1748528905346,0.42648471,169.68,169.65,17.36099817]
[1748528905659,0.42648471,169.68,169.64,17.36099817]
[1748528906385,0.28432314,169.68,169.64,17.36099817]
[1748528906554,0.28432314,169.68,169.65,17.36099817]
[1748528906865,0.28432314,169.68,169.61,13.8829]
[1748528906866,0.14216157,169.69,169.66,17.36099817]
[1748528907040,0.14216157,169.7,169.68,17.36099817]
[1748528907371,0.14216157,169.7,169.69,17.36099817]
[1748528907570,0.28432314,169.71,169.69,17.36099817]
[1748528907759,0.14216157,169.71,169.69,17.36099817]
[1748528908063,0.42648471,169.7,169.63,6.4117]
[1748528908274,0.42648471,169.7,169.66,17.36099817]
[1748528908959,0.14216157,169.71,169.67,17.36099817]
[1748528909262,0.14216157,169.71,169.7,17.36099817]
[1748528909465,17.50315974,169.74,169.69,17.36099817]
[1748528909639,0.28432314,169.73,169.69,17.36099817]
[1748528910764,0.14216157,169.72,169.68,17.36099817]
[1748528911448,17.64532131,169.73,169.68,17.36099817]
[1748528911663,0.42648471,169.73,169.69,17.36099817]
[1748528912543,0.28432314,169.73,169.69,17.36099817]
[1748528912943,0.14216157,169.72,169.68,17.36099817]
[1748528913152,0.14216157,169.72,169.63,32.4117]
[1748528913153,17.50315974,169.7,169.63,32.4117]
[1748528913465,17.50315974,169.7,169.65,17.36099817]
[1748528913965,0.42648471,169.71,169.66,17.36099817]
[1748528914266,17.78748288,169.71,169.66,17.36099817]
[1748528914867,26.0,169.76,169.68,17.36099817]
[1748528915068,0.14216157,169.72,169.69,17.36099817]
[1748528915269,0.14216157,169.72,169.63,38.30666884]
[1748528915547,0.14216157,169.72,169.68,17.36099817]
[1748528915763,0.42648471,169.72,169.67,17.36099817]
[1748528915948,17.50315974,169.71,169.63,32.4117]
[1748528916152,17.50315974,169.71,169.66,17.36099817]
[1748528916653,0.28432314,169.7,169.66,17.36099817]
[1748528916851,0.14216157,169.69,169.65,17.36099817]
[1748528917476,0.42648471,169.7,169.66,17.36099817]
[1748528917968,0.28432314,169.7,169.67,17.36099817]
[1748528918146,0.14216157,169.71,169.67,17.36099817]
[1748528918343,0.14216157,169.71,169.7,17.36099817]
[1748528918545,0.14216157,169.75,169.7,17.36099817]
[1748528918770,17.64532131,169.75,169.7,17.36099817]
[1748528918970,0.14216157,169.74,169.7,17.36099817]
[1748528919141,17.64532131,169.75,169.7,17.36099817]
[1748528920151,0.14216157,169.75,169.71,17.36099817]
[1748528920676,0.28432314,169.75,169.71,17.36099817]
[1748528921067,0.42648471,169.75,169.71,17.36099817]
[1748528921246,17.78748288,169.75,169.7,17.36099817]
[1748528921448,17.78748288,169.75,169.68,1.5749]
[1748528921674,0.14216157,169.73,169.7,17.36099817]
[1748528921983,0.14216157,169.73,169.71,17.36099817]
[1748528922370,0.42648471,169.75,169.71,17.36099817]
[1748528925212,0.28432314,169.75,169.71,17.36099817]
[1748528925512,0.42648471,169.75,169.71,17.36099817]
[1748528926098,0.28432314,169.75,169.71,17.36099817]
[1748528926517,0.28432314,169.75,169.72,17.36099817]
[1748528926924,26.14216157,169.76,169.72,17.36099817]
[1748528927124,26.14216157,169.76,169.71,17.36099817]
[1748528927125,17.50315974,169.76,169.71,17.36099817]
[1748528927335,0.28432314,169.75,169.71,17.36099817]
[1748528927628,0.14216157,169.74,169.7,17.36099817]
[1748528927834,0.28432314,169.73,169.69,17.36099817]
[1748528928038,0.28432314,169.73,169.68,1.5749]
[1748528928039,0.14216157,169.72,169.68,17.36099817]
[1748528930106,0.14216157,169.72,169.67,12.22]
[1748528930422,0.14216157,169.72,169.68,17.36099817]
[1748528931000,0.14216157,169.72,169.67,12.22]
[1748528931001,0.28432314,169.71,169.67,29.58099817]
[1748528931734,0.42648471,169.71,169.68,17.36099817]
[1748528934120,17.78748288,169.73,169.68,17.36099817]
[1748528934728,0.28432314,169.7,169.67,12.22]
[1748528935028,0.28432314,169.7,169.64,1.5574]
[1748528935029,0.14216157,169.69,169.66,17.36099817]
[1748528935223,0.14216157,169.69,169.64,1.5574]
[1748528935404,0.14216157,169.69,169.65,17.36099817]
[1748528936727,0.14216157,169.69,169.64,1.5574]
[1748528936908,0.14216157,169.67,169.63,17.36099817]
[1748528937634,17.50315974,169.66,169.62,12.22]
[1748528937925,17.36099817,169.65,169.62,12.22]
[1748528938138,17.50315974,169.66,169.61,17.36099817]
[1748528939122,0.14216157,169.65,169.61,17.36099817]
[1748528940715,0.14216157,169.65,169.62,17.36099817]
[1748528940918,0.14216157,169.65,169.6,1.6308]
[1748528940919,17.50315974,169.67,169.63,17.36099817]
[1748528941139,17.50315974,169.67,169.66,17.36099817]
[1748528941140,0.14216157,169.67,169.66,17.36099817]
[1748528941441,0.14216157,169.7,169.66,17.36099817]
[1748528941819,0.14216157,169.7,169.67,17.36099817]
[1748528942020,0.14216157,169.71,169.69,17.36099817]
[1748528942336,0.14216157,169.71,169.68,17.36099817]
[1748528942512,0.14216157,169.71,169.67,17.36099817]
[1748528942833,0.14216157,169.69,169.6,42.3708]
[1748528943008,0.14216157,169.69,169.65,17.36099817]
[1748528943934,0.28432314,169.7,169.66,17.36099817]
[1748528944936,17.50315974,169.71,169.66,17.36099817]
[1748528945330,19.07613357,169.71,169.62,12.18]
[1748528945529,0.14216157,169.66,169.62,29.54099817]
[1748528945843,17.50315974,169.66,169.62,12.18]
[1748528946024,17.50315974,169.66,169.61,17.36099817]
[1748528946736,0.28432314,169.68,169.62,17.36099817]
[1748528947038,0.14216157,169.66,169.62,17.36099817]
[1748528947428,17.36099817,169.67,169.62,17.36099817]
[1748528947624,0.14216157,169.66,169.62,17.36099817]
[1748528949847,0.42648471,169.69,169.62,17.36099817]
[1748528950048,0.14216157,169.66,169.62,17.36099817]
[1748528950547,17.50315974,169.66,169.61,17.36099817]
[1748528950842,17.50315974,169.66,169.59,43.36099817]
[1748528950843,0.14216157,169.63,169.59,43.36099817]
[1748528951061,17.50315974,169.63,169.58,17.36099817]
[1748528952547,0.14216157,169.6,169.57,12.18]
[1748528952754,0.14216157,169.6,169.57,29.54099817]
[1748528953050,0.14216157,169.6,169.57,17.36099817]
[1748528953219,0.14216157,169.6,169.56,1.6257]
[1748528953220,0.14216157,169.6,169.56,18.98669817]
[1748528954150,0.14216157,169.6,169.56,17.36099817]
[1748528954350,0.14216157,169.6,169.55,2.94079799]
[1748528954541,17.50315974,169.59,169.54,17.36099817]
[1748528955419,17.50315974,169.59,169.52,18.97219817]
[1748528955420,17.50315974,169.57,169.52,18.97219817]
[1748528955618,0.14216157,169.55,169.51,114.38099817]
[1748528956055,0.14216157,169.55,169.52,17.36099817]
[1748528956244,0.28432314,169.58,169.51,97.02]
[1748528956449,17.36099817,169.57,169.52,17.36099817]
[1748528958140,0.14216157,169.55,169.51,117.35638834]
[1748528958525,17.50315974,169.55,169.51,97.02]
[1748528958721,17.50315974,169.55,169.47,1.6524]
[1748528958722,0.14216157,169.54,169.47,1.6524]
[1748528958984,0.14216157,169.53,169.47,1.6524]
[1748528959153,0.14216157,169.53,169.5,17.36099817]
[1748528959325,0.14216157,169.53,169.51,17.36099817]
[1748528959528,0.14216157,169.55,169.51,17.36099817]
[1748528959529,0.28432314,169.55,169.51,17.36099817]
[1748528960256,17.64532131,169.55,169.49,2.88215739]
[1748528960455,0.28432314,169.55,169.51,17.36099817]
[1748528960943,17.64532131,169.55,169.5,17.36099817]
[1748528961252,0.14216157,169.53,169.49,17.36099817]
[1748528965247,0.28432314,169.53,169.49,17.36099817]
[1748528965440,17.64532131,169.51,169.42,1.5804]
[1748528965638,17.64532131,169.51,169.46,17.36099817]
[1748528965845,17.64532131,169.51,169.43,38.18]
[1748528966051,17.36099817,169.5,169.45,17.36099817]
[1748528966761,0.28432314,169.51,169.43,41.11946219]
[1748528966952,17.64532131,169.51,169.46,17.36099817]
[1748528967266,17.36099817,169.5,169.45,17.36099817]
[1748528967437,0.28432314,169.49,169.45,17.36099817]
[1748528967637,17.64532131,169.49,169.44,17.36099817]
[1748528967868,0.14216157,169.46,169.43,12.18]
[1748528968433,0.14216157,169.46,169.42,20.2721481]
[1748528968857,0.14216157,169.46,169.42,17.36099817]
[1748528970149,0.42648471,169.5,169.43,17.36099817]
[1748528970474,0.28432314,169.47,169.43,17.36099817]